bitfinex/quotes_ETHUSD_20240603
["timestamp","ask_amount","ask_price","bid_price","bid_amount"]
[1717377299008,2.3182,3788.6,3787.9,0.02714666]
[1717377299150,0.53074277,3788.5,3787.9,0.02714666]
[1717377299353,0.53074277,3788.5,3787.3,2.64038]
[1717377299551,0.53074277,3788.5,3787.4,0.55]
[1717377299788,0.53074277,3788.5,3787.5,0.02714666]
[1717377300173,2.63965,3788.4,3787.5,0.02714666]
[1717377300505,0.54885928,3788.3,3787.3,2.64038]
[1717377300672,5.778,3789.4,3786.8,1.56967423]
[1717377300673,1.144,3788.1,3786.8,1.56967423]
[1717377300852,2.64019,3787.6,3787.4,0.02534745]
[1717377301055,2.3005,3788.0,3786.7,2.64076]
[1717377301056,0.264019,3787.5,3786.7,2.64076]
[1717377301286,2.3005,3788.0,3787.0,2.64055]
[1717377301787,2.3005,3788.0,3787.1,0.02403984]
[1717377302477,2.3005,3788.0,3787.1,0.57403984]
[1717377305294,2.3005,3788.0,3787.2,2.64044]
[1717377305664,2.3005,3788.0,3787.3,0.57414416]
[1717377305876,2.3864,3788.5,3787.4,2.64028]
[1717377306394,2.3864,3788.5,3787.6,2.64018]
[1717377306597,2.3864,3788.5,3787.7,0.57402732]
[1717377308772,2.63956,3788.6,3787.7,0.57402732]
[1717377308773,9.6664,3788.9,3787.8,2.64002]
[1717377308991,2.3864,3788.9,3788.1,2.6398]
[1717377309189,2.63885,3789.6,3788.4,2.6396]
[1717377309190,2.3864,3789.4,3788.4,2.6396]
[1717377309354,7.28,3789.9,3788.8,2.63931]
[1717377309355,9.6664,3789.9,3788.8,2.63931]
[1717377309560,9.6664,3789.9,3788.9,0.55]
[1717377309807,2.18664,3789.8,3788.9,0.55]
[1717377310171,2.3864,3789.9,3789.1,2.63911]
[1717377310379,7.28,3790.4,3789.3,2.63897]
[1717377310703,2.274,3790.5,3789.5,2.63881]
[1717377310903,2.274,3790.5,3789.6,0.55]
[1717377311207,2.274,3790.5,3789.7,2.63867]
[1717377311355,0.2274,3790.4,3789.7,2.63867]
[1717377311560,0.2274,3790.4,3789.6,0.57348924]
[1717377311561,0.2274,3790.4,3789.2,2.63904]
[1717377311774,2.63857,3790.0,3788.7,2.63939]
[1717377311979,2.6387,3789.8,3788.2,2.63973]
[1717377312608,2.63899,3789.4,3788.2,2.63973]
[1717377312810,2.63899,3789.4,3787.6,2.64012]
[1717377312811,2.63911,3789.2,3787.6,2.64012]
[1717377313232,2.679199,3789.3,3788.1,2.63984]
[1717377313505,2.63876,3789.7,3788.3,1.144]
[1717377313657,2.4153,3789.8,3788.9,2.63923]
[1717377314061,2.4086,3790.3,3788.9,2.63923]
[1717377314311,2.4086,3790.3,3789.2,2.63904]
[1717377314476,0.9916,3790.2,3789.4,2.63891]
[1717377314682,2.4086,3790.3,3789.0,0.55]
[1717377314882,2.4086,3790.3,3789.0,3.55]
[1717377315278,2.4086,3790.3,3789.2,2.63906]
[1717377315626,2.4086,3790.3,3789.3,0.55]
[1717377315908,7.28,3790.9,3789.2,1.525]
[1717377316108,7.28,3790.9,3789.3,0.55]
[1717377316109,0.728,3790.8,3789.3,0.55]
[1717377316283,0.728,3790.8,3789.8,2.63863]
[1717377316477,0.728,3790.8,3789.3,0.55]
[1717377316478,0.728,3790.8,3790.1,2.63843]
[1717377317001,2.4246,3791.0,3790.2,0.55]
[1717377317179,2.4246,3791.6,3790.3,2.63825]
[1717377317371,2.4246,3791.6,3790.4,0.55]
[1717377318440,2.63749,3791.5,3790.5,2.63816]
[1717377318574,2.63749,3791.5,3790.0,2.63848]
[1717377318767,2.63795,3790.9,3789.4,2.63889]
[1717377318980,0.506209,3791.4,3789.4,2.63889]
[1717377318981,2.63804,3790.7,3789.4,2.63889]
[1717377320370,2.63804,3790.7,3789.5,0.55]
[1717377320571,0.506264,3790.6,3789.5,0.55]
[1717377321368,0.506264,3790.6,3789.6,2.63879]
[1717377321683,0.506264,3790.6,3790.0,2.63848]
[1717377321882,2.4246,3790.8,3790.1,0.55]
[1717377322076,0.506209,3791.4,3790.2,2.63833]
[1717377322077,2.930809,3791.4,3790.2,2.63833]
[1717377322278,2.930809,3791.4,3789.4,3.0]
[1717377322507,2.930809,3791.4,3789.1,1.525]
[1717377322508,2.4246,3791.4,3789.5,0.55]
[1717377322714,2.4246,3791.4,3789.2,0.55]
[1717377322866,2.63728,3791.8,3790.5,2.63814]
[1717377323073,2.63728,3791.8,3790.7,2.63802]
[1717377323275,0.263728,3791.7,3790.7,2.63802]
[1717377323636,0.263728,3791.7,3790.8,0.55]
[1717377323792,0.263728,3791.7,3790.9,2.63789]
[1717377324141,2.4577,3792.1,3791.0,0.55]
[1717377324996,9.91696,3792.3,3791.1,2.63769]
[1717377325193,9.91696,3792.3,3791.2,0.55]
[1717377328251,9.91696,3792.3,3791.3,2.63761]
[1717377328465,9.91696,3792.3,3790.6,3.0]
[1717377328466,2.3355,3792.7,3791.7,2.63732]
[1717377328629,0.53355,3792.6,3791.8,0.55]
[1717377329216,0.53355,3792.6,3791.2,2.63764]
[1717377329534,0.53355,3792.6,3791.3,3.55]
[1717377329738,1.014905,3792.5,3791.3,3.55]
[1717377329943,3.651715,3792.5,3791.3,3.55]
[1717377331659,3.651715,3792.5,3791.4,0.07634315]
[1717377331823,3.651715,3792.5,3791.5,0.55]
[1717377332031,1.014905,3792.5,3791.6,2.71310656]
[1717377332280,0.3883955,3792.4,3791.7,0.55]
[1717377332836,0.3883955,3792.4,3791.8,0.07572656]
[1717377333979,2.63696,3792.3,3791.8,0.07572656]
[1717377334187,2.63696,3792.3,3791.1,2.63771]
[1717377334364,0.40402605,3792.2,3791.9,0.07572656]
[1717377334569,0.40402605,3792.2,3791.1,2.63771]
[1717377334887,0.40402605,3792.2,3791.2,0.07565993]
[1717377335464,0.40402605,3792.2,3791.3,2.6376]
[1717377335761,1.014905,3792.5,3791.9,2.63719]
[1717377335962,7.28,3792.8,3791.9,2.63719]
[1717377336183,7.28,3792.8,3792.0,0.55]
[1717377336581,2.481,3793.3,3792.1,2.63702]
[1717377336905,2.481,3793.3,3792.0,0.55]
[1717377336906,2.481,3793.3,3792.3,2.6369]
[1717377337281,2.481,3793.3,3792.4,0.55]
[1717377337580,0.511716,3793.2,3792.4,0.6253768]
[1717377337781,7.28,3793.8,3792.5,2.63677]
[1717377338102,2.636,3793.7,3792.6,0.62536848]
[1717377338511,2.63623,3793.3,3792.6,0.07536848]
[1717377338998,2.63623,3793.3,3792.7,0.07521446]
[1717377339210,2.6364,3793.1,3792.0,2.63706]
[1717377339522,0.49354,3793.0,3792.1,0.55]
[1717377339877,2.6365,3792.9,3792.2,0.07521446]
[1717377340059,2.63679,3792.5,3792.2,0.07521446]
[1717377340267,2.299,3792.4,3791.0,2.63776]
[1717377340675,2.299,3792.4,3791.2,2.63764]
[1717377340889,0.493579,3792.3,3791.2,2.63764]
[1717377341122,2.63707,3792.1,3791.3,0.07285203]
[1717377341422,2.299,3792.4,3791.2,2.63768]
[1717377341565,2.299,3792.4,3791.6,2.63739]
[1717377341961,2.63677,3792.6,3791.7,0.07311017]
[1717377342196,9.6898,3793.0,3791.8,2.63724]
[1717377342372,1.232621,3792.9,3791.8,2.63724]
[1717377342571,2.4098,3793.0,3791.9,0.0731185]
[1717377342771,2.4098,3793.0,3792.0,0.55]
[1717377343284,2.4098,3793.0,3791.8,2.63724]
[1717377343285,2.63652,3792.9,3792.1,0.0731185]
[1717377343809,2.63652,3792.9,3791.9,0.55]
[1717377344160,2.63678,3792.5,3792.0,0.0731185]
[1717377344395,2.63678,3792.5,3791.5,0.55]
[1717377344598,2.63678,3792.5,3791.6,0.0731185]
[1717377344764,2.63678,3792.5,3791.4,0.55]
[1717377345212,2.63678,3792.5,3791.5,0.0731185]
[1717377345423,2.63678,3792.5,3791.6,3.18738]
[1717377345714,2.87749,3792.9,3791.6,3.18738]
[1717377345879,2.87749,3792.9,3791.7,0.0731185]
[1717377346080,2.87749,3792.9,3791.8,0.55]
[1717377346294,0.528729,3792.8,3791.8,0.55]
[1717377346478,0.528729,3792.8,3791.9,0.07303937]
[1717377346808,0.528729,3792.8,3792.0,0.55]
[1717377346979,2.63666,3792.7,3791.8,0.55]
[1717377347176,2.63666,3792.7,3791.6,2.63738]
[1717377347177,2.63666,3792.7,3791.9,0.07303937]
[1717377347381,2.63678,3792.5,3791.7,0.55]
[1717377347612,0.3406369,3792.6,3791.8,2.71028937]
[1717377347776,0.528729,3792.8,3791.9,0.55]
[1717377348165,0.528729,3792.8,3792.0,0.07303937]
[1717377350065,7.28,3793.0,3792.1,3.18702]
[1717377350710,7.28,3793.0,3792.3,2.6369]
[1717377350931,7.28,3793.0,3792.4,0.55]
[1717377351279,7.28,3793.0,3792.5,0.07303937]
[1717377353305,7.28,3793.0,3792.6,3.18669]
[1717377353521,7.28,3793.5,3792.6,3.18669]
[1717377353672,7.28,3793.5,3792.7,0.07257726]
[1717377353990,7.28,3793.5,3792.8,0.55]
[1717377354178,7.28,3793.5,3792.6,2.63669]
[1717377354179,8.271588,3793.5,3792.6,2.63669]
[1717377355227,8.271588,3793.5,3792.7,0.55]
[1717377355442,7.28,3793.5,3792.7,0.55]
[1717377358161,7.28,3793.5,3792.6,2.63669]
[1717377358497,7.28,3793.5,3792.7,0.07260224]
[1717377358934,7.28,3793.5,3792.6,2.63669]
[1717377359302,2.63588,3793.8,3792.7,0.07219427]
[1717377359631,2.63605,3793.6,3792.6,2.63669]
[1717377359834,2.63605,3793.6,3792.7,0.07219427]
[1717377360105,2.63605,3793.6,3792.6,2.63669]
[1717377360500,2.63605,3793.6,3792.7,0.07219427]
[1717377360952,2.63605,3793.6,3792.2,2.63698]
[1717377361148,0.4359758,3793.5,3792.3,0.55]
[1717377361455,0.4359758,3793.5,3792.3,0.62218178]
[1717377361844,0.4359758,3793.5,3792.4,2.63681]
[1717377362144,9.6812,3794.0,3792.7,2.63663]
[1717377362503,9.6812,3794.0,3792.8,0.62224838]
[1717377364115,2.6359,3793.8,3792.8,0.07224838]
[1717377364320,9.6812,3794.0,3792.8,0.07224838]
[1717377364321,1.23171,3793.7,3792.8,0.07224838]
[1717377364639,1.23171,3793.7,3792.6,2.63665]
[1717377364640,9.91575,3794.0,3792.9,0.55]
[1717377364816,9.91575,3794.0,3792.7,0.55]
[1717377365019,9.91575,3794.0,3792.8,0.07215681]
[1717377365212,0.991575,3793.9,3792.9,0.55]
[1717377365444,2.63575,3794.0,3792.9,0.55]
[1717377365614,2.63575,3794.0,3792.7,0.55]
[1717377365820,2.63575,3794.0,3792.8,0.07215681]
[1717377366150,2.63575,3794.0,3792.9,0.55]
[1717377366837,2.63575,3794.0,3793.0,0.07215681]
[1717377367040,0.263575,3793.9,3792.7,0.55]
[1717377367204,2.63575,3794.0,3792.9,2.63648]
[1717377367622,2.63575,3794.0,3793.0,0.07215681]
[1717377368552,2.63575,3794.0,3793.1,2.63633]
[1717377368747,9.91547,3794.4,3793.4,2.6361]
[1717377369306,9.91547,3794.4,3793.4,2.89971]
[1717377370446,2.63574,3794.0,3792.9,2.63649]
[1717377370647,2.63574,3794.0,3793.0,0.07180727]
[1717377372955,2.63596,3793.7,3792.7,0.55]
[1717377373154,0.492326,3793.6,3793.1,0.07180727]
[1717377373355,2.63596,3793.7,3792.7,2.63663]
[1717377373608,2.2873,3793.9,3793.2,0.07180727]
[1717377373889,2.2873,3793.9,3793.3,0.07202364]
[1717377374294,2.2873,3793.9,3792.9,2.63645]
[1717377374447,2.2873,3793.9,3793.4,0.07202364]
[1717377374648,2.779595,3793.9,3792.9,2.63645]
[1717377374849,2.2873,3793.9,3793.0,0.62201115]
[1717377377188,4.92316,3793.9,3793.0,0.07201115]
[1717377378995,7.28,3794.4,3793.2,2.63624]
[1717377379208,7.28,3794.4,3793.3,0.55]
[1717377379495,7.28,3794.4,3793.4,2.63613]
[1717377379654,7.28,3794.4,3793.5,0.868613]
[1717377379855,2.63532,3794.6,3793.6,0.07197789]
[1717377380096,2.63532,3794.6,3793.5,0.868613]
[1717377381274,2.63562,3794.2,3793.0,2.63643]
[1717377381472,2.63562,3794.2,3793.2,2.63629]
[1717377382196,2.63562,3794.2,3793.3,0.07184058]
[1717377382407,2.63586,3793.9,3793.3,0.07184058]
[1717377382581,2.3424,3793.8,3793.3,0.07184058]
[1717377382771,2.3424,3793.8,3792.8,2.63656]
[1717377382964,2.3424,3793.8,3793.4,0.06943341]
[1717377383169,2.63599,3793.7,3792.8,2.63656]
[1717377383389,2.63599,3793.7,3793.5,0.06943341]
[1717377383607,2.63599,3793.7,3792.8,2.63656]
[1717377383907,3.133829,3793.7,3792.9,0.06943341]
[1717377384577,3.133829,3793.7,3792.5,3.0]
[1717377384786,2.63599,3793.7,3793.0,0.06943341]
[1717377384994,2.63623,3793.3,3792.4,2.63684]
[1717377385163,2.63623,3793.3,3793.1,0.06943341]
[1717377385370,2.63623,3793.3,3792.4,2.63684]
[1717377385565,2.63623,3793.3,3793.2,0.06943341]
[1717377385769,2.899853,3793.3,3792.0,2.63711]
[1717377386207,2.899853,3793.3,3792.1,3.06943341]
[1717377386770,2.3797,3792.8,3792.1,3.06943341]
[1717377386975,2.3797,3792.8,3792.1,0.06943341]
[1717377387237,2.88132,3792.8,3792.1,0.06943341]
[1717377387367,2.88132,3792.8,3791.5,3.77944]
[1717377387571,2.88132,3792.8,3792.2,0.06943341]
[1717377387771,2.88132,3792.8,3791.5,3.77944]
[1717377388017,2.88132,3792.8,3792.3,0.06943341]
[1717377388325,0.551782,3792.7,3791.5,3.77944]
[1717377388530,2.3797,3792.8,3791.6,3.55]
[1717377388820,2.3797,3792.8,3791.6,3.61943341]
[1717377391173,2.3797,3792.8,3791.7,2.63728]
[1717377391373,2.3797,3792.8,3791.8,0.55]
[1717377391978,2.3797,3792.8,3791.8,0.62032823]
[1717377393677,2.3797,3792.8,3792.0,2.63711]
[1717377393938,7.28,3793.2,3792.2,2.63698]
[1717377394109,7.28,3793.2,3792.3,0.55]
[1717377394440,2.4581,3793.4,3792.6,2.63671]
[1717377395015,2.4581,3793.4,3792.7,0.62022416]
[1717377395192,7.28,3793.6,3792.7,0.94591758]
[1717377395395,2.3652,3793.8,3792.7,0.94591758]
[1717377399142,2.63622,3793.4,3792.7,0.07022416]
[1717377399555,2.63622,3793.4,3792.2,2.63699]
[1717377399737,2.63622,3793.4,3792.8,0.06972052]
[1717377400076,2.63622,3793.4,3792.9,0.06972052]
[1717377400378,0.263622,3793.3,3792.2,2.63699]
[1717377400672,0.263622,3793.3,3792.3,0.06974133]
[1717377405226,2.3444,3793.1,3792.3,0.06974133]
[1717377405436,2.63646,3793.0,3792.3,0.06974133]
[1717377405640,2.63646,3793.0,3791.8,2.63725]
[1717377405784,2.63646,3793.0,3792.4,0.06986203]
[1717377406097,2.63646,3793.0,3791.9,0.55]
[1717377406291,0.498086,3792.9,3791.9,0.55]
[1717377406505,2.63662,3792.8,3791.9,0.55]
[1717377406889,2.63662,3792.8,3792.0,0.06986203]
[1717377408106,2.63662,3792.8,3791.4,3.0]
[1717377408302,2.63686,3792.4,3792.1,0.06986203]
[1717377408628,2.63711,3792.1,3790.9,2.63788]
[1717377408789,2.3788,3792.0,3790.9,2.63788]
[1717377408993,2.3788,3792.0,3791.0,0.06986203]
[1717377409389,2.63731,3791.8,3791.0,0.06986203]
[1717377409939,2.63731,3791.8,3791.1,0.0702117]
[1717377410429,2.63731,3791.8,3790.6,3.0]
[1717377410590,2.63731,3791.8,3791.2,0.0702117]
[1717377410790,2.63731,3791.8,3790.6,3.0]
[1717377410987,2.63731,3791.8,3790.7,2.63799]
[1717377411193,2.63731,3791.8,3790.8,3.0]
[1717377411496,2.63731,3791.8,3790.9,0.07071135]
[1717377411891,3.138921,3791.8,3790.9,0.07071135]
[1717377412106,2.63748,3791.5,3790.9,0.07071135]
[1717377412529,2.63748,3791.5,3790.4,3.0]
[1717377412711,2.63748,3791.5,3791.0,0.07073217]
[1717377412916,2.63748,3791.5,3790.5,0.55]
[1717377413111,3.17192239,3791.5,3791.1,0.07073217]
[1717377413445,3.17192239,3791.5,3790.5,0.55]
[1717377413645,3.17192239,3791.5,3791.2,0.07073217]
[1717377413800,3.17192239,3791.5,3790.4,3.0]
[1717377414138,3.17192239,3791.5,3790.5,0.07073217]
[1717377414353,0.54707224,3791.4,3790.5,0.07073217]
[1717377414501,2.63762,3791.3,3790.3,2.6383]
[1717377414698,2.63762,3791.3,3790.6,0.07073217]
[1717377415003,2.63762,3791.3,3790.3,2.6383]
[1717377415735,2.63762,3791.3,3790.4,0.07073217]
[1717377416505,3.20493177,3791.3,3790.4,0.07073217]
[1717377419705,2.3557,3791.2,3790.4,0.07073217]
[1717377420371,2.3557,3791.2,3790.5,0.55]
[1717377420709,2.3557,3791.2,3790.6,0.07136107]
[1717377421299,2.3557,3791.2,3790.0,3.0]
[1717377421508,2.855032,3791.2,3790.7,0.07136107]
[1717377421856,2.855032,3791.2,3789.8,2.63861]
[1717377422203,2.855032,3791.2,3789.9,0.07136107]
[1717377422410,2.63803,3790.8,3789.9,0.07136107]
[1717377424161,2.63818,3790.5,3789.9,0.07136107]
[1717377424609,2.63818,3790.5,3789.5,3.0]
[1717377424801,2.63818,3790.5,3790.0,0.07157773]
[1717377425007,2.63818,3790.5,3789.6,0.55]
[1717377425230,2.63818,3790.5,3790.1,0.07157773]
[1717377425561,2.63818,3790.5,3790.2,0.07157773]
[1717377425562,2.63831,3790.3,3790.2,0.07157773]
[1717377426067,2.63831,3790.3,3789.0,2.63921]
[1717377426353,2.63831,3790.3,3789.2,2.63904]
[1717377426508,2.463,3790.4,3789.1,0.06725695]
[1717377426509,2.463,3790.4,3789.4,2.6389]
[1717377426715,2.463,3790.4,3789.6,2.63875]
[1717377427024,7.28,3790.8,3789.8,2.63859]
[1717377427217,2.463,3791.3,3790.2,2.63836]
[1717377427546,7.28,3791.5,3790.5,2.63816]
[1717377427724,7.28,3791.5,3790.7,2.63798]
[1717377428055,7.28,3791.5,3790.8,0.55]
[1717377428261,7.28,3791.5,3790.8,0.61709026]
[1717377428944,7.28,3791.5,3790.9,2.63789]
[1717377429124,7.28,3791.5,3791.0,0.55]
[1717377429325,12.2,3792.0,3791.0,0.89990502]
[1717377429326,19.48,3792.0,3791.0,0.89990502]
[1717377429515,7.28,3792.0,3791.1,2.70483026]
[1717377429825,7.28,3792.0,3791.5,2.63743]
[1717377430027,9.743,3792.8,3791.7,2.63732]
[1717377430428,9.743,3792.8,3791.8,0.61657372]
[1717377430621,0.9743,3792.7,3791.8,3.06657372]
[1717377431357,0.9743,3792.7,3791.8,0.06657372]
[1717377431734,2.63675,3792.6,3791.2,3.0]
[1717377431918,2.4399,3792.0,3790.5,2.63811]
[1717377432120,0.507697,3791.9,3791.3,0.06652376]
[1717377432423,0.507697,3791.9,3790.5,2.63811]
[1717377432737,2.4399,3792.0,3790.8,2.63793]
[1717377433052,7.28,3792.3,3791.2,2.63762]
[1717377433645,7.28,3792.3,3791.4,2.63753]
[1717377433822,7.28,3792.3,3791.5,0.55]
[1717377434250,7.28,3792.3,3791.6,0.06671116]
[1717377435262,7.28,3792.3,3791.7,3.18731]
[1717377435764,7.28,3792.3,3791.8,0.06657789]
[1717377435938,7.28,3792.3,3791.9,0.55]
[1717377436266,7.28,3792.8,3792.0,2.63712]
[1717377436469,7.28,3792.8,3792.1,0.55]
[1717377436755,2.63632,3793.2,3792.1,0.55]
[1717377436964,7.28,3794.1,3792.1,0.55]
[1717377436965,9.7462,3794.1,3792.6,2.63669]
[1717377437147,9.7462,3794.1,3792.3,1.142]
[1717377437148,2.4662,3794.1,3792.8,2.6365]
[1717377437461,2.4662,3794.1,3792.9,0.55]
[1717377438037,2.4662,3794.1,3793.1,2.63633]
[1717377438349,2.71282,3794.1,3793.3,2.63618]
[1717377438972,2.71282,3794.1,3793.4,0.06522038]
[1717377439648,3.85482,3794.1,3793.4,0.06522038]
[1717377439837,1.142,3793.7,3793.4,0.06522038]
[1717377440041,2.4969,3793.6,3792.1,2.637]
[1717377440233,0.36389,3793.5,3792.1,2.637]
[1717377440762,0.36389,3793.5,3792.3,2.63685]
[1717377441323,0.36389,3793.5,3792.4,0.06327447]
[1717377442046,2.422,3793.4,3792.4,0.06327447]
[1717377443563,2.422,3793.3,3791.7,2.63727]
[1717377443722,3.078399,3793.3,3791.7,2.63727]
[1717377443921,5.2,3793.2,3791.8,0.06327447]
[1717377444122,5.0586,3792.8,3791.8,0.06327447]
[1717377444323,1.142,3792.9,3791.2,2.63768]
[1717377444324,2.422,3792.6,3791.2,2.63768]
[1717377444571,0.5422,3792.5,3791.9,0.0611678]
[1717377444773,3.5422,3792.5,3791.2,2.63768]
[1717377446678,3.5422,3792.5,3790.3,3.0]
[1717377446679,5.05887,3792.4,3790.7,2.63802]
[1717377446883,2.63701,3792.2,3790.7,2.63802]
[1717377447082,3.227901,3792.1,3790.8,0.0611678]
[1717377447385,6.227901,3792.1,3790.7,2.63802]
[1717377448578,2.422,3791.8,3790.7,2.63802]
[1717377450169,2.422,3791.8,3791.2,2.63768]
[1717377450339,7.28,3792.2,3791.6,2.63735]
[1717377450541,2.422,3792.4,3791.6,2.63735]
[1717377452980,2.63694,3792.3,3791.1,2.63774]
[1717377453984,2.63708,3792.1,3790.5,2.63816]
[1717377454140,2.63708,3792.1,3791.2,0.06192961]
[1717377454340,2.63708,3792.1,3790.9,2.63785]
[1717377454545,2.63708,3792.1,3791.3,0.06211703]
[1717377454758,2.63708,3792.1,3790.9,2.63785]
[1717377455057,0.500518,3792.0,3790.9,2.63785]
[1717377455277,2.63722,3791.9,3791.0,0.06211703]
[1717377455575,2.3681,3791.8,3790.4,2.63822]
[1717377455939,2.3681,3791.8,3790.6,2.63804]
[1717377456395,2.3681,3791.8,3790.7,0.06219618]
[1717377456683,1.228532,3791.7,3790.8,2.63792]
[1717377457354,1.228532,3791.7,3790.9,0.06220034]
[1717377458477,1.228532,3791.7,3791.0,2.63777]
[1717377458903,1.228532,3791.7,3791.1,0.06242941]
[1717377461146,1.228532,3791.7,3790.5,2.63813]
[1717377461390,0.3596632,3791.6,3790.5,2.63813]
[1717377461584,0.3596632,3791.6,3790.6,0.06234609]
[1717377464486,0.3596632,3791.6,3790.7,2.63802]
[1717377464915,0.3596632,3791.6,3790.8,0.06234609]
[1717377467896,1.228532,3791.7,3791.0,2.63781]
[1717377468084,1.228532,3791.7,3791.2,2.63768]
[1717377468284,2.3681,3791.8,3791.2,2.63768]
[1717377471244,2.3681,3791.8,3790.7,2.638]
[1717377471406,2.63735,3791.7,3790.7,2.638]
[1717377472137,2.63735,3791.7,3790.8,0.05795579]
[1717377472811,2.3681,3791.8,3790.9,2.63787]
[1717377473007,3.44711,3791.8,3790.9,2.63787]
[1717377474429,2.63734,3791.7,3790.5,2.63817]
[1717377474635,2.63734,3791.7,3791.0,0.05810555]
[1717377474810,2.63734,3791.7,3790.5,2.63817]
[1717377475004,2.63749,3791.5,3790.5,2.63817]
[1717377475211,0.504989,3791.4,3790.6,0.05810555]
[1717377480319,2.4124,3791.6,3790.7,2.63802]
[1717377480515,1.07901,3791.8,3790.1,3.0]
[1717377480516,7.28,3792.0,3791.3,2.63755]
[1717377480714,2.3713,3792.2,3791.6,2.63734]
[1717377481016,19.48,3792.4,3792.0,2.63713]
[1717377481231,2.2624,3792.6,3792.0,2.63713]
[1717377481481,2.2624,3792.6,3792.1,0.0580473]
[1717377482269,2.2624,3792.6,3791.5,2.63742]
[1717377482431,2.2624,3792.6,3792.2,0.05820128]
[1717377482621,0.489897,3792.5,3791.5,2.63742]
[1717377482833,2.63685,3792.4,3792.3,0.05820128]
[1717377483147,2.63685,3792.4,3791.0,2.63775]
[1717377483463,2.63703,3792.2,3791.1,0.05626124]
[1717377485755,2.63716,3792.0,3791.1,0.05626124]
[1717377485914,0.263716,3791.9,3791.1,0.05626124]
[1717377488964,2.3647,3791.7,3790.6,2.6381]
[1717377489129,2.63746,3791.6,3790.7,0.05636523]
[1717377489327,2.63764,3791.3,3790.7,0.05636523]
[1717377489526,0.500234,3791.2,3790.2,2.63836]
[1717377489725,0.500234,3791.2,3790.8,0.05636523]
[1717377490024,2.63776,3791.1,3790.2,2.63836]
[1717377490435,2.63776,3791.1,3790.3,0.05651084]
[1717377490626,2.63776,3791.1,3790.2,2.63836]
[1717377490852,2.63776,3791.1,3790.4,0.05642405]
[1717377491053,5.00219,3791.5,3790.4,0.2694784]
[1717377491262,2.3647,3791.5,3790.7,1.142]
[1717377491441,5.11118,3792.0,3790.7,1.142]
[1717377491774,5.11118,3792.0,3790.8,0.05642405]
[1717377492067,5.11118,3792.0,3790.7,1.142]
[1717377492368,2.474,3792.0,3791.2,2.63766]
[1717377492741,2.474,3792.0,3791.3,0.05642405]
[1717377492943,2.474,3792.0,3790.8,2.63795]
[1717377493331,2.6372,3791.9,3790.9,0.05642405]
[1717377493570,2.63743,3791.6,3790.5,3.0]
[1717377493773,2.63743,3791.6,3790.6,0.05642405]
[1717377493977,2.2954,3791.7,3790.6,0.05642405]
[1717377493978,2.63769,3791.2,3790.6,0.05642405]
[1717377494214,2.63769,3791.2,3790.4,2.63823]
[1717377494922,2.63769,3791.2,3790.0,2.6385]
[1717377495066,2.63769,3791.2,3790.2,2.63831]
[1717377495819,2.63769,3791.2,3790.3,0.05642405]
[1717377495971,7.28,3791.5,3790.4,3.18822]
[1717377496318,2.2858,3792.3,3791.5,2.63741]
[1717377496511,2.63665,3792.7,3791.5,3.015351]
[1717377496808,2.63665,3792.7,3791.6,0.05642405]
[1717377497376,2.63665,3792.7,3791.7,2.63732]
[1717377497616,2.63665,3792.7,3791.7,2.69345286]
[1717377498711,2.63665,3792.7,3791.7,0.05613286]
[1717377498899,2.63678,3792.5,3791.7,0.05613286]
[1717377499159,2.63678,3792.5,3791.3,2.63761]
[1717377499336,2.63678,3792.5,3791.8,0.05602057]
[1717377499610,2.63678,3792.5,3791.9,0.05602889]
[1717377499806,2.3107,3792.4,3791.3,2.63761]
[1717377500027,0.5439725,3792.3,3792.0,0.05602889]
[1717377500208,0.5439725,3792.3,3791.3,2.63761]
[1717377500421,0.5439725,3792.3,3792.1,0.05602889]
[1717377500611,0.5439725,3792.3,3791.3,2.63761]
[1717377501113,0.5439725,3792.3,3791.4,0.05602889]
[1717377501898,0.54914525,3792.2,3791.4,0.05602889]
[1717377502100,0.54914525,3792.2,3791.5,2.63744]
[1717377502300,2.3107,3792.4,3791.5,2.63744]
[1717377502501,2.3107,3792.4,3791.7,2.63733]
[1717377502800,2.3107,3792.4,3791.8,0.05576265]
[1717377504622,2.4992,3792.8,3791.8,0.05576265]
[1717377504802,3.10415106,3792.8,3791.8,0.05576265]
[1717377506766,3.10415106,3792.8,3791.7,2.63733]
[1717377507171,3.10415106,3792.8,3792.0,2.63707]
[1717377507456,2.4992,3792.8,3792.0,2.900777]
[1717377507660,2.4992,3792.8,3792.0,2.63707]
[1717377508169,7.28,3793.0,3792.3,2.6369]
[1717377508467,2.4398,3793.3,3792.3,2.6369]
[1717377514074,2.4398,3793.3,3792.5,2.63671]
[1717377514262,2.19198,3793.2,3792.5,2.63671]
[1717377514663,2.19198,3793.2,3792.6,0.05487705]
[1717377515214,2.19198,3793.2,3792.0,2.63709]
[1717377515570,2.19198,3793.2,3792.1,0.05486874]
[1717377516069,2.63637,3793.1,3792.1,0.05486874]
[1717377516265,0.726815,3793.0,3792.1,0.05486874]
[1717377517276,2.63652,3792.9,3792.1,0.05486874]
[1717377517479,2.63666,3792.7,3791.5,2.63742]
[1717377518307,2.63695,3792.3,3791.0,2.63777]
[1717377518723,2.63695,3792.3,3791.1,0.05486874]
[1717377518874,0.263695,3792.2,3791.1,0.05486874]
[1717377519292,2.63712,3792.1,3791.1,0.05486874]
[1717377519475,5.03172,3792.1,3791.1,0.05486874]
[1717377519820,5.03172,3792.1,3791.0,2.63777]